bitfinex/quotes_SOLUSD_20240824
["timestamp","ask_amount","ask_price","bid_price","bid_amount"]
[1724533077994,4.66532126,160.74,160.67,10.68620077]
[1724533078194,4.66532126,160.73,160.67,10.68620077]
[1724533078408,45.0,160.75,160.67,10.68620077]
[1724533078600,4.66526108,160.74,160.67,10.68620077]
[1724533078811,4.66526108,160.73,160.67,10.68620077]
[1724533079006,4.66526108,160.72,160.67,10.68620077]
[1724533079202,4.66526108,160.71,160.67,10.68620077]
[1724533079402,4.66526108,160.7,160.67,10.68620077]
[1724533079598,45.0,160.75,160.67,10.68620077]
[1724533080116,9.33189279,160.74,160.67,10.68620077]
[1724533080415,9.3319604,160.74,160.67,10.68620077]
[1724533080800,4.66596561,160.73,160.67,10.68620077]
[1724533080995,4.66594199,160.74,160.67,10.68620077]
[1724533080996,4.66596561,160.72,160.67,10.68620077]
[1724533081195,4.66596561,160.71,160.67,10.68620077]
[1724533081394,4.66594199,160.74,160.69,33.09490077]
[1724533081695,4.66594199,160.74,160.72,10.68620077]
[1724533082924,4.66594199,160.74,160.73,22.4087]
[1724533083397,0.5,160.8,160.73,22.4087]
[1724533083606,0.5,160.8,160.76,10.68620077]
[1724533085300,0.5,160.8,160.73,22.4087]
[1724533085603,0.5,160.8,160.74,30.68620077]
[1724533089428,0.5,160.8,160.74,20.0]
[1724533089835,0.5,160.8,160.77,10.68620077]
[1724533090129,0.5,160.8,160.75,10.68620077]
[1724533091505,0.5,160.8,160.74,20.0]
[1724533091709,0.5,160.8,160.73,33.09490077]
[1724533091930,0.5,160.8,160.73,22.4087]
[1724533093224,6.7191,160.8,160.73,22.4087]
[1724533093425,0.5,160.8,160.73,33.09490077]
[1724533095115,0.5,160.8,160.73,22.4087]
[1724533097712,0.5,160.8,160.73,33.09490077]
[1724533105622,0.5,160.8,160.7,6.42442225]
[1724533105935,6.2193,160.79,160.71,10.68620077]
[1724533106230,10.68620077,160.77,160.7,6.42442225]
[1724533106434,25.89690077,160.77,160.7,6.42442225]
[1724533106734,45.0,160.76,160.67,10.68620077]
[1724533107035,45.0,160.76,160.67,17.10418195]
[1724533108223,51.2204,160.76,160.67,17.10418195]
[1724533109028,10.68620077,160.75,160.67,6.41798118]
[1724533110233,51.2212,160.74,160.67,6.41798118]
[1724533112941,16.90810077,160.73,160.64,10.68620077]
[1724533113116,16.90810077,160.73,160.65,6.42166754]
[1724533113313,1.63170859,160.72,160.65,6.42166754]
[1724533113513,16.90810077,160.73,160.65,6.42166754]
[1724533113712,1.6313706,160.72,160.65,6.42166754]
[1724533113919,16.90810077,160.73,160.65,6.42166754]
[1724533114323,1.63205464,160.72,160.65,6.42166754]
[1724533114520,16.90810077,160.73,160.65,6.42166754]
[1724533114716,1.63206929,160.72,160.65,6.42166754]
[1724533114931,16.90810077,160.73,160.65,6.42166754]
[1724533115137,1.63207481,160.72,160.65,6.42166754]
[1724533115320,16.90810077,160.73,160.65,6.42166754]
[1724533115632,1.63207624,160.72,160.65,6.42166754]
[1724533115937,16.90810077,160.73,160.65,6.42166754]
[1724533116137,1.63208262,160.72,160.65,6.42166754]
[1724533116339,16.90810077,160.73,160.65,6.42166754]
[1724533116534,1.63234292,160.72,160.65,6.42166754]
[1724533116741,16.90810077,160.73,160.65,6.42166754]
[1724533116941,1.63230465,160.72,160.65,6.42166754]
[1724533117244,16.90810077,160.73,160.65,6.42166754]
[1724533117627,1.63243299,160.72,160.65,6.42166754]
[1724533117821,16.90810077,160.73,160.65,6.42166754]
[1724533118021,1.63221987,160.72,160.65,6.42166754]
[1724533118244,16.90810077,160.73,160.65,6.42166754]
[1724533118422,1.63218578,160.72,160.65,6.42166754]
[1724533118624,16.90810077,160.73,160.65,6.42166754]
[1724533118943,1.632172,160.72,160.65,6.42166754]
[1724533119150,16.90810077,160.73,160.65,6.42166754]
[1724533119339,1.63216854,160.72,160.65,6.42166754]
[1724533119534,16.90810077,160.73,160.65,6.42166754]
[1724533119721,1.63250674,160.72,160.65,6.42166754]
[1724533119926,16.90810077,160.73,160.65,6.42166754]
[1724533120123,1.6325247,160.72,160.65,6.42166754]
[1724533120329,16.90810077,160.73,160.65,6.42166754]
[1724533120534,1.63257035,160.72,160.65,6.42166754]
[1724533120736,16.90810077,160.73,160.65,6.42166754]
[1724533121140,1.63256967,160.72,160.65,6.42166754]
[1724533121448,16.90810077,160.73,160.65,6.42166754]
[1724533121642,1.63271287,160.72,160.65,6.42166754]
[1724533121823,16.90810077,160.73,160.65,6.42166754]
[1724533122019,10.68620077,160.71,160.65,6.42166754]
[1724533123343,45.0,160.7,160.65,6.42166754]
[1724533128359,22.3282,160.72,160.65,6.42166754]
[1724533128562,45.0,160.71,160.65,6.42166754]
[1724533128739,45.0,160.71,160.63,10.68620077]
[1724533129240,45.0,160.71,160.64,6.42232459]
[1724533132056,6.2228,160.7,160.64,6.42232459]
[1724533133065,10.68620077,160.69,160.64,6.42232459]
[1724533133278,10.68620077,160.69,160.61,22.919]
[1724533133279,6.2236,160.68,160.61,22.919]
[1724533143897,10.68620077,160.67,160.61,22.919]
[1724533144204,6.2244,160.66,160.61,22.919]
[1724533145384,6.2244,160.66,160.59,6.42305063]
[1724533145593,10.68620077,160.65,160.59,6.42305063]
[1724533145975,16.91100077,160.65,160.59,6.42305063]
[1724533146289,51.2251,160.64,160.59,6.42305063]
[1724533146490,51.2251,160.64,160.57,22.01]
[1724533147993,45.0,160.64,160.57,22.01]
[1724533148895,10.68620077,160.63,160.57,22.01]
[1724533150167,45.0,160.62,160.55,6.42890574]
[1724533150371,6.2266,160.6,160.55,6.42890574]
[1724533150568,6.2266,160.6,160.53,22.2428]
[1724533150998,6.2279,160.57,160.53,22.2428]
[1724533151171,6.227,160.6,160.53,22.2428]
[1724533153796,10.68620077,160.59,160.53,22.2428]
[1724533154903,16.91340077,160.59,160.53,22.2428]
[1724533155100,51.2274,160.58,160.53,22.2428]
[1724533155483,45.0,160.58,160.53,22.2428]
[1724533155805,55.68620077,160.59,160.53,22.2428]
[1724533155988,61.91340077,160.59,160.53,22.2428]
[1724533156588,51.2272,160.59,160.53,22.2428]
[1724533159110,45.0,160.59,160.53,22.2428]
[1724533159285,6.2262,160.61,160.53,22.2428]
[1724533161411,10.68620077,160.64,160.55,10.68620077]
[1724533161715,16.91160077,160.64,160.55,10.68620077]
[1724533162094,6.2256,160.63,160.55,10.68620077]
[1724533162712,16.91130077,160.64,160.56,1.24544158]
[1724533162916,16.91130077,160.64,160.55,10.68620077]
[1724533163210,16.1933,160.7,160.59,10.68620077]
[1724533163404,6.2237,160.68,160.59,10.68620077]
[1724533164698,45.0,160.67,160.59,10.68620077]
[1724533164898,45.0,160.67,160.6,22.6627]
[1724533168597,6.2237,160.68,160.6,22.6627]
[1724533169210,10.68620077,160.66,160.6,22.6627]
[1724533171317,51.224,160.67,160.6,22.6627]
[1724533172717,45.0,160.67,160.6,22.6627]
[1724533172931,10.68620077,160.7,160.6,22.6627]
[1724533173117,46.63654495,160.69,160.6,33.34890077]
[1724533173309,1.63654495,160.68,160.6,33.34890077]
[1724533173515,1.63654495,160.67,160.6,33.34890077]
[1724533173710,45.0,160.69,160.6,33.34890077]
[1724533173930,1.63630854,160.68,160.6,33.34890077]
[1724533174236,6.2236,160.68,160.6,33.34890077]
[1724533174410,1.63622224,160.67,160.6,33.34890077]
[1724533174610,6.2236,160.68,160.6,33.34890077]
[1724533174809,1.63667167,160.67,160.6,33.34890077]
[1724533175035,6.2236,160.68,160.6,33.34890077]
[1724533175737,1.63675473,160.67,160.6,22.6627]
[1724533175935,6.2236,160.68,160.6,22.6627]
[1724533176238,1.63680743,160.67,160.6,22.6627]
[1724533176446,6.2236,160.68,160.6,22.6627]
[1724533176737,52.860994,160.67,160.6,22.6627]
[1724533176907,1.636794,160.66,160.6,22.6627]
[1724533177120,6.2242,160.67,160.6,22.6627]
[1724533177321,1.637651,160.66,160.6,22.6627]
[1724533177522,6.2242,160.67,160.6,22.6627]
[1724533177727,1.63765063,160.66,160.6,22.6627]
[1724533177912,6.2242,160.67,160.6,22.6627]
[1724533178109,1.63765349,160.66,160.6,22.6627]
[1724533178336,1.63765349,160.65,160.6,22.6627]
[1724533178537,6.2242,160.67,160.6,22.6627]
[1724533178737,1.63772919,160.66,160.6,22.6627]
[1724533178943,1.63772919,160.65,160.6,22.6627]
[1724533179153,6.2242,160.67,160.6,22.6627]
[1724533179318,1.63849743,160.66,160.6,22.6627]
[1724533179636,1.63849743,160.65,160.6,22.6627]
[1724533179838,6.2242,160.67,160.6,22.6627]
[1724533180066,1.6385141,160.66,160.6,22.6627]
[1724533180217,1.6385141,160.65,160.6,22.6627]
[1724533180554,6.2242,160.67,160.6,22.6627]
[1724533180735,16.90990077,160.68,160.6,22.6627]
[1724533180917,1.63765106,160.66,160.6,33.34890077]
[1724533181113,6.2237,160.68,160.6,33.34890077]
[1724533181420,6.2236,160.68,160.6,33.34890077]
[1724533181726,1.63768615,160.67,160.6,33.34890077]
[1724533181933,1.63768615,160.66,160.6,33.34890077]
[1724533182233,16.90910077,160.7,160.6,33.34890077]
[1724533182437,1.63514473,160.69,160.61,3.00057382]
[1724533182642,1.63514473,160.68,160.61,3.00057382]
[1724533182854,6.2229,160.7,160.62,10.68620077]
[1724533183145,1.63456321,160.69,160.62,10.68620077]
[1724533183345,6.2229,160.7,160.63,15.3884]
[1724533183522,1.63366885,160.69,160.64,6.0278]
[1724533183839,6.2224,160.71,160.64,6.0278]
[1724533184040,1.63339512,160.7,160.64,6.0278]
[1724533184249,1.63339512,160.69,160.64,6.0278]
[1724533184419,6.2224,160.71,160.64,6.0278]
[1724533184747,1.63331394,160.7,160.64,6.0278]
[1724533184937,1.63331394,160.69,160.64,6.0278]
[1724533185246,6.2224,160.71,160.64,6.0278]
[1724533185420,1.63339512,160.7,160.64,6.0278]
[1724533185741,1.63339512,160.69,160.64,6.0278]
[1724533185923,6.2224,160.71,160.64,6.0278]
[1724533186124,1.63349027,160.7,160.64,6.0278]
[1724533186340,6.2224,160.71,160.64,6.0278]
[1724533186530,1.63340385,160.7,160.64,6.0278]
[1724533186731,6.2224,160.71,160.64,6.0278]
[1724533186934,1.63330506,160.7,160.64,16.71400077]
[1724533187128,6.2224,160.71,160.64,17.95883846]
[1724533187327,1.63328744,160.7,160.64,17.95883846]
[1724533187629,6.2224,160.71,160.64,17.95883846]
[1724533187831,1.63338006,160.7,160.64,17.95883846]
[1724533188029,6.2224,160.71,160.64,17.95883846]
[1724533189437,6.2224,160.71,160.64,16.71400077]
[1724533190350,6.222,160.72,160.65,1.24484349]
[1724533190849,6.222,160.72,160.64,16.71400077]
[1724533191352,0.5,160.73,160.66,16.5898]
[1724533191545,0.5,160.73,160.66,27.27600077]
[1724533191922,0.5,160.73,160.67,6.5835]
[1724533192128,0.5,160.73,160.68,1.24454642]
[1724533192327,0.5,160.73,160.67,6.5835]
[1724533193540,6.7216,160.73,160.67,6.5835]
[1724533198034,16.90830077,160.72,160.67,6.5835]
[1724533200440,6.7216,160.73,160.67,6.5835]
[1724533201157,6.222,160.72,160.67,6.5835]
[1724533201340,0.5,160.73,160.67,6.5835]
[1724533203846,6.7216,160.73,160.67,6.5835]
[1724533204142,6.222,160.72,160.67,6.5835]
[1724533204360,6.2224,160.71,160.67,6.5835]
[1724533204645,6.2228,160.7,160.67,6.5835]
[1724533204855,51.2228,160.7,160.67,6.5835]
[1724533205160,6.2228,160.7,160.67,6.5835]
[1724533208642,55.68620077,160.72,160.67,6.5835]
[1724533208643,61.90850077,160.72,160.67,6.5835]
[1724533208852,6.2224,160.71,160.67,6.5835]
[1724533209272,0.5,160.73,160.67,6.5835]
[1724533209444,0.5,160.73,160.67,17.26970077]
[1724533210671,0.5,160.73,160.67,6.5835]
[1724533211175,6.7218,160.73,160.67,6.5835]
[1724533214044,0.5,160.73,160.67,6.5835]
[1724533219271,0.5,160.73,160.67,9.58298363]
[1724533220057,0.5,160.73,160.67,20.2691844]
[1724533220273,0.5,160.73,160.67,17.26970077]
[1724533223676,0.5,160.73,160.68,2.99919377]
[1724533224184,0.5,160.73,160.67,17.26970077]
[1724533224384,0.5,160.73,160.68,2.99918334]
[1724533224577,0.5,160.73,160.69,2.99918334]
[1724533224787,0.5,160.73,160.68,2.99918334]
[1724533225102,0.5,160.73,160.69,2.99911045]
[1724533225266,0.5,160.73,160.68,2.9991231]
[1724533225462,0.5,160.73,160.69,2.9991231]
[1724533225662,0.5,160.73,160.68,2.9991231]
[1724533225891,0.5,160.73,160.69,2.9991231]
[1724533226190,0.5,160.73,160.67,17.26970077]
[1724533226687,0.5,160.73,160.68,2.99914996]
[1724533226863,0.5,160.73,160.69,2.99914996]
[1724533227067,0.5,160.73,160.67,6.5835]
[1724533227364,0.5,160.73,160.68,2.99915439]
[1724533227687,0.5,160.73,160.69,2.99915439]
[1724533227881,0.5,160.73,160.67,6.5835]
[1724533228198,0.5,160.73,160.68,2.9991564]
[1724533228365,0.5,160.73,160.69,2.9991564]
[1724533228567,0.5,160.73,160.67,6.5835]
[1724533228892,0.5,160.73,160.7,2.99915606]
[1724533229195,0.5,160.73,160.68,2.99915606]
[1724533229371,0.5,160.73,160.69,2.99917287]
[1724533229567,0.5,160.73,160.67,6.5835]
[1724533229984,6.222,160.72,160.67,6.5835]
[1724533230178,6.7216,160.73,160.68,2.99970689]
[1724533230377,6.7216,160.73,160.67,6.5835]
[1724533230668,6.7216,160.73,160.68,2.99952537]
[1724533230986,6.7216,160.73,160.67,6.5835]
[1724533231172,6.7216,160.73,160.68,2.99955456]
[1724533231373,6.7216,160.73,160.67,6.5835]
[1724533231590,6.7216,160.73,160.68,2.99953409]
[1724533231896,6.7216,160.73,160.67,6.5835]
[1724533232073,6.7216,160.73,160.68,10.71112087]
[1724533232271,6.7216,160.73,160.69,10.71112087]
[1724533232467,6.7216,160.73,160.67,6.5835]
[1724533232673,6.7216,160.73,160.68,10.71102149]
[1724533232879,6.7216,160.73,160.67,6.5835]
[1724533232880,6.2224,160.71,160.67,6.5835]
[1724533234996,6.2224,160.71,160.68,10.71075548]
[1724533235194,6.2224,160.71,160.67,6.5835]
[1724533235493,6.2224,160.71,160.68,7.71106901]
[1724533235693,6.2224,160.71,160.67,6.5835]
[1724533235891,6.2227,160.7,160.66,16.5898]
[1724533236080,6.2227,160.7,160.67,7.71046257]
[1724533236282,6.2227,160.7,160.66,16.5898]
[1724533236478,6.2227,160.7,160.67,7.71046257]
[1724533236685,6.2227,160.7,160.66,16.5898]
[1724533236896,6.2227,160.7,160.67,7.71046257]
[1724533237212,6.2227,160.7,160.66,16.5898]
[1724533237412,6.2227,160.7,160.67,7.71052293]
[1724533237579,6.2227,160.7,160.66,16.5898]
[1724533237778,6.2227,160.7,160.67,7.71052293]
[1724533237998,6.2227,160.7,160.66,16.5898]
[1724533238188,6.2227,160.7,160.67,7.71046257]
[1724533238378,6.2227,160.7,160.63,13.14568972]
[1724533238587,6.2227,160.7,160.64,7.7104637]
[1724533238783,6.2227,160.7,160.63,13.14568972]
[1724533241203,10.68620077,160.68,160.63,13.14568972]
[1724533241404,6.2243,160.66,160.59,6.6639]
[1724533245084,6.2247,160.65,160.59,6.6639]
[1724533248106,6.2243,160.66,160.59,6.6639]
[1724533248305,6.2239,160.68,160.6,1.24517503]
[1724533248613,10.68620077,160.62,160.57,6.50296315]
[1724533248830,10.68620077,160.64,160.54,6.5777]
[1724533248831,77.69710308,160.64,160.54,6.5777]
[1724533248985,10.68620077,160.59,160.54,6.5777]
[1724533249307,7.67681882,160.62,160.54,6.5777]
[1724533249509,6.2255,160.63,160.54,6.5777]
[1724533249694,16.2523,160.64,160.54,6.5777]
[1724533249898,45.0,160.63,160.55,1.24558887]
[1724533250212,16.2523,160.64,160.54,17.26390077]
[1724533250213,16.2523,160.64,160.54,6.5777]
[1724533250511,26.93850077,160.64,160.54,6.5777]
[1724533250715,45.0,160.63,160.54,6.5777]
[1724533251386,10.68620077,160.62,160.54,6.5777]
[1724533252295,45.0,160.61,160.54,6.5777]
[1724533255394,10.68620077,160.58,160.52,15.6778]
[1724533255600,45.0,160.61,160.52,15.6778]
[1724533255910,10.68620077,160.6,160.52,15.6778]
[1724533256096,45.0,160.59,160.52,15.6778]
[1724533256497,51.2271,160.59,160.52,15.6778]
[1724533258399,10.68620077,160.58,160.52,15.6778]
[1724533260025,16.91370077,160.58,160.52,15.6778]
[1724533260819,45.0,160.57,160.5,6.5777]
[1724533261208,10.68620077,160.56,160.5,6.5777]
[1724533261408,16.91440077,160.56,160.5,6.5777]
[1724533262412,10.68620077,160.56,160.5,6.5777]
[1724533262732,16.91450077,160.56,160.5,6.5777]
[1724533263310,16.91450077,160.56,160.48,15.0504]
[1724533263311,6.2289,160.54,160.48,15.0504]
[1724533265231,6.2289,160.54,160.46,6.1261]
[1724533265232,6.2298,160.52,160.46,6.1261]
[1724533266427,6.2292,160.54,160.46,6.1261]
[1724533266637,45.0,160.55,160.47,10.68620077]
[1724533267527,10.68620077,160.57,160.47,10.68620077]
[1724533267712,6.2285,160.56,160.47,10.68620077]
[1724533269021,6.2287,160.55,160.46,6.1261]
[1724533269226,6.2291,160.54,160.46,16.81230077]
[1724533270238,6.2293,160.53,160.46,16.81230077]
[1724533270547,6.2293,160.53,160.46,6.1261]
[1724533270844,10.68620077,160.55,160.46,6.1261]
[1724533271042,45.0,160.54,160.46,6.1261]
[1724533271414,51.2289,160.54,160.46,6.1261]
[1724533271735,45.0,160.54,160.46,6.1261]
[1724533272348,51.229,160.54,160.46,6.1261]
[1724533272647,10.68620077,160.55,160.46,16.81230077]
[1724533273125,12.49224922,160.62,160.48,10.68620077]
[1724533273436,6.2274,160.58,160.5,10.68620077]
[1724533274042,6.2278,160.57,160.5,10.68620077]
[1724533275258,6.2278,160.57,160.48,10.68620077]
[1724533275457,16.91400077,160.57,160.48,10.68620077]
[1724533275656,6.2282,160.56,160.47,26.75850077]
[1724533275859,6.2282,160.56,160.47,16.0723]
[1724533275860,10.68620077,160.55,160.47,16.0723]
[1724533276065,45.0,160.54,160.47,16.0723]
[1724533277145,51.2293,160.54,160.47,16.0723]
[1724533277378,10.68620077,160.53,160.47,16.0723]
[1724533277701,10.68620077,160.51,160.46,6.1261]
[1724533277880,10.68620077,160.51,160.44,0.8285541]
[1724533278085,45.0,160.5,160.44,0.8285541]
[1724533279287,51.2308,160.5,160.44,0.8285541]
[1724533279683,45.0,160.5,160.44,0.8285541]
[1724533279852,16.91640077,160.51,160.44,0.8285541]
[1724533280866,45.0,160.5,160.44,0.8285541]
[1724533281594,51.2307,160.5,160.44,0.8285541]
[1724533284481,45.0,160.5,160.44,0.8285541]
[1724533287170,6.2309,160.49,160.44,0.8285541]
[1724533287894,16.91710077,160.49,160.44,0.8285541]
[1724533291677,45.0,160.48,160.44,0.8285541]
[1724533291875,51.2313,160.48,160.44,0.8285541]
[1724533293194,45.0,160.48,160.44,0.8285541]
[1724533293395,51.2314,160.48,160.44,0.8285541]
[1724533294785,6.2317,160.47,160.44,0.8285541]
[1724533295580,45.0,160.48,160.44,0.8285541]
[1724533296295,51.2314,160.48,160.44,0.8285541]
[1724533297976,6.2307,160.5,160.44,0.8285541]
[1724533298771,10.68620077,160.53,160.44,0.8285541]
[1724533298979,10.68620077,160.53,160.45,15.5043]
[1724533298980,6.2293,160.53,160.45,15.5043]
[1724533299501,6.2305,160.5,160.45,15.5043]
[1724533299800,10.68620077,160.52,160.45,15.5043]
[1724533299801,6.2309,160.49,160.45,15.5043]
[1724533299979,6.2313,160.48,160.45,15.5043]
[1724533300296,16.91750077,160.48,160.44,0.8285541]
[1724533300687,6.2313,160.48,160.44,0.8285541]
[1724533300887,6.2324,160.45,160.44,0.8285541]
[1724533301091,10.68620077,160.46,160.44,0.8285541]
[1724533301604,10.68620077,160.48,160.44,0.8285541]
[1724533301801,6.2309,160.49,160.44,0.8285541]
[1724533302306,16.91710077,160.49,160.44,0.8285541]
[1724533302474,45.0,160.48,160.44,0.8285541]
[1724533302902,6.232,160.47,160.44,0.8285541]
[1724533303201,6.232,160.46,160.44,0.8285541]
[1724533304306,16.91860077,160.45,160.44,0.8285541]
[1724533304679,10.68620077,160.45,160.44,0.8285541]
[1724533304879,6.2321,160.46,160.44,0.8285541]
[1724533305303,51.2324,160.45,160.44,0.8285541]
[1724533305504,10.68620077,160.47,160.44,0.8285541]
[1724533305505,6.232,160.46,160.44,0.8285541]
[1724533306712,6.2324,160.45,160.44,0.8285541]
[1724533308305,61.91860077,160.45,160.44,0.8285541]
[1724533308708,80.61860077,160.45,160.44,0.8285541]
[1724533309884,18.7,160.44,160.4,0.1]
[1724533310201,6.2332,160.43,160.4,0.1]
[1724533311201,6.2337,160.42,160.4,0.1]
[1724533311797,6.2336,160.42,160.4,0.1]
[1724533312195,6.234,160.41,160.4,0.1]
[1724533313501,16.92020077,160.41,160.4,0.1]
[1724533314602,61.92020077,160.41,160.4,0.1]
[1724533315714,80.62020077,160.41,160.4,0.1]
[1724533318311,74.38620077,160.41,160.3,22.7045]
[1724533318513,63.7,160.41,160.3,22.7045]
[1724533318816,10.68620077,160.4,160.3,22.7045]
[1724533319020,10.68620077,160.41,160.31,10.68620077]
[1724533319227,6.2354,160.38,160.31,10.68620077]
[1724533319725,6.2361,160.36,160.3,22.7045]
[1724533322036,6.2355,160.38,160.3,22.7045]
[1724533322241,15.584,160.43,160.3,22.7045]
[1724533322242,10.68620077,160.41,160.31,55.68620077]
[1724533322532,10.68620077,160.41,160.31,10.68620077]
[1724533323034,6.2348,160.39,160.31,10.68620077]
[1724533323332,6.2344,160.4,160.32,45.0]
[1724533325717,6.2351,160.39,160.31,10.68620077]
[1724533325919,6.2353,160.38,160.31,10.68620077]
[1724533326801,6.234,160.41,160.33,10.68620077]
[1724533327032,18.7,160.45,160.33,10.68620077]
[1724533327033,6.2344,160.4,160.33,10.68620077]
[1724533328224,6.2344,160.4,160.31,10.68620077]
[1724533328528,6.2349,160.39,160.32,45.0]
[1724533328727,6.2349,160.39,160.31,10.68620077]
[1724533329407,6.2349,160.39,160.3,22.7045]
[1724533329602,6.2349,160.39,160.31,10.68620077]
[1724533329924,10.68620077,160.39,160.3,22.7045]
[1724533330731,6.2356,160.37,160.3,22.7045]
[1724533332026,6.236,160.36,160.3,22.7045]
[1724533332508,6.2363,160.35,160.3,22.7045]
[1724533333324,6.2363,160.35,160.28,11.51475487]
[1724533333325,6.237,160.34,160.28,0.8285541]
[1724533333910,6.3973,160.4,160.29,17.34830077]
[1724533334110,10.68620077,160.4,160.29,17.34830077]
[1724533335030,10.68620077,160.4,160.3,45.0]
[1724533336042,6.2352,160.38,160.3,45.0]
[1724533337337,10.68620077,160.4,160.3,45.0]
[1724533337338,6.2347,160.4,160.31,10.68620077]
[1724533337540,6.2347,160.4,160.32,15.2859]
[1724533337918,6.2348,160.39,160.32,15.2859]
[1724533339034,6.2344,160.4,160.32,15.2859]
[1724533339218,6.2348,160.39,160.32,15.2859]
[1724533339416,6.2348,160.39,160.33,1.24722081]
[1724533339618,6.2348,160.39,160.32,15.2859]
[1724533339819,6.2343,160.41,160.33,10.68620077]
[1724533340027,6.2345,160.4,160.33,10.68620077]
[1724533340226,6.2348,160.39,160.33,10.68620077]
[1724533340433,6.2348,160.39,160.32,15.2859]
[1724533341517,10.68620077,160.39,160.32,15.2859]
[1724533341718,6.2356,160.37,160.32,15.2859]
[1724533343647,6.2363,160.35,160.32,15.2859]
[1724533343854,10.68620077,160.37,160.32,15.2859]
[1724533344163,6.2355,160.38,160.32,15.2859]
[1724533344325,10.68620077,160.4,160.32,15.2859]
[1724533344642,6.2353,160.38,160.32,15.2859]
[1724533344938,10.68620077,160.43,160.32,25.97210077]
[1724533345335,6.2341,160.41,160.32,25.97210077]
[1724533345927,27.16080077,160.45,160.34,10.68620077]
[1724533346238,27.16080077,160.45,160.36,6.6621]
[1724533346239,6.2336,160.43,160.36,6.6621]
[1724533346831,6.2337,160.42,160.36,6.6621]
[1724533347032,6.2331,160.44,160.36,17.34830077]
[1724533347356,6.2331,160.44,160.37,15.2859]
[1724533349957,6.2331,160.44,160.38,45.0]
[1724533353662,6.2324,160.45,160.38,55.68620077]
[1724533355754,6.2329,160.44,160.38,55.68620077]
[1724533356666,6.2333,160.43,160.37,15.2859]
[1724533357156,6.2336,160.42,160.37,15.2859]
[1724533357659,6.2332,160.43,160.37,15.2859]
[1724533358032,6.2337,160.42,160.37,15.2859]
[1724533358370,10.68620077,160.45,160.37,15.2859]
[1724533358940,6.2351,160.38,160.37,15.2859]
[1724533359266,6.2351,160.38,160.36,6.6621]
[1724533359437,6.2348,160.39,160.36,6.6621]
[1724533363636,6.2344,160.4,160.36,6.6621]
[1724533366762,10.68620077,160.41,160.33,15.2786]
[1724533366973,10.68620077,160.37,160.33,15.2786]
[1724533368051,10.68620077,160.35,160.29,15.2786]
[1724533369169,6.2386,160.29,160.28,0.8285541]
[1724533369769,6.2412,160.23,160.21,15.60451907]
[1724533370273,6.2414,160.22,160.21,15.60451907]
[1724533370450,6.2432,160.18,160.12,0.8285541]
[1724533370651,10.68620077,160.17,160.12,0.8285541]
[1724533370966,16.92960077,160.17,160.12,0.8285541]
[1724533371159,6.2449,160.13,160.12,0.8285541]
[1724533371361,10.68620077,160.13,160.12,0.8285541]
[1724533371546,10.68620077,160.13,160.12,0.3285541]
[1724533371748,10.68620077,160.13,160.0,1.0]
[1724533371749,6.2469,160.08,160.0,1.0]
[1724533371945,6.2454,160.12,160.02,10.68620077]
[1724533372165,6.2458,160.11,160.02,10.68620077]
[1724533372480,6.2452,160.13,160.01,27.00913094]
[1724533372775,6.2456,160.12,160.0,1.0]
[1724533373163,27.00913094,160.13,160.04,6.2483]
[1724533373367,6.2447,160.14,160.01,27.00913094]
[1724533374257,6.2447,160.14,160.06,6.2475]
[1724533374481,27.00913094,160.13,160.0,1.0]
[1724533374680,27.00913094,160.15,160.07,6.2471]
[1724533374979,27.00913094,160.22,160.07,27.00913094]
[1724533375158,27.00913094,160.2,160.11,6.2454]
[1724533375362,33.25163094,160.2,160.07,27.00913094]
[1724533375677,6.2428,160.19,160.11,6.2454]
[1724533375871,6.2428,160.19,160.12,51.2451]
[1724533376180,6.2428,160.19,160.12,6.2451]
[1724533376476,6.2428,160.19,160.13,45.0]
[1724533377084,27.00913094,160.22,160.13,45.0]
[1724533378052,27.00913094,160.2,160.13,45.0]
[1724533378256,27.00913094,160.2,160.1,6.3429]
[1724533378674,6.2434,160.17,160.11,45.0]